[Event "Titled Tuesday Blitz August 1 Late 2023"]
[White "Aravindh, Chithambaram VR."]
[Black "Bauman_Guy"]
[WhiteFideId "5072786"]
[WhiteElo "2894"]
[BlackElo "2823"]
[Result "1-0"]
[Round "10"]
[TimeControl "180+1"]
[Date "2023.08.01"]
[WhiteClock "0:01:19"]
[BlackClock "0:01:26"]
[Board "8"]

1. Nf3 {[%clk 0:02:58]}  d5 {[%clk 0:02:59]} 2. d4 {[%clk 0:02:58]}  Nf6 {[%clk 0:02:59]} 3. e3 {[%clk 0:02:59]}  c5 {[%clk 0:02:59]} 4. Be2 {[%clk 0:02:52]}  Nc6 {[%clk 0:02:59]} 5. O-O {[%clk 0:02:52]}  Bf5 {[%clk 0:02:59]} 6. dxc5 {[%clk 0:02:50]}  e6 {[%clk 0:02:59]} 7. Nd4 {[%clk 0:02:50]}  Bg6 {[%clk 0:02:54]} 8. Bb5 {[%clk 0:02:46]}  Rc8 {[%clk 0:02:54]} 9. b4 {[%clk 0:02:44]}  Be7 {[%clk 0:02:53]} 10. Bb2 {[%clk 0:02:28]}  O-O {[%clk 0:02:53]} 11. a3 {[%clk 0:02:24]}  a5 {[%clk 0:02:52]} 12. Bxc6 {[%clk 0:02:15]}  bxc6 {[%clk 0:02:52]} 13. Nd2 {[%clk 0:02:16]}  e5 {[%clk 0:02:49]} 14. N4f3 {[%clk 0:02:16]}  axb4 {[%clk 0:02:42]} 15. axb4 {[%clk 0:02:15]}  d4 {[%clk 0:02:29]} 16. exd4 {[%clk 0:02:11]}  e4 {[%clk 0:02:27]} 17. Ne5 {[%clk 0:02:11]}  Qc7 {[%clk 0:02:18]} 18. Ra6 {[%clk 0:02:05]}  Qb7 {[%clk 0:02:17]} 19. Rb6 {[%clk 0:02:05]}  Qc7 {[%clk 0:02:02]} 20. Rxc6 {[%clk 0:02:01]}  Qd8 {[%clk 0:02:00]} 21. b5 {[%clk 0:01:53]}  Bf5 {[%clk 0:01:58]} 22. Rxc8 {[%clk 0:01:51]}  Qxc8 {[%clk 0:01:59]} 23. Ndc4 {[%clk 0:01:48]}  Rd8 {[%clk 0:01:55]} 24. Nc6 {[%clk 0:01:46]}  Re8 {[%clk 0:01:52]} 25. Nxe7+ {[%clk 0:01:39]}  Rxe7 {[%clk 0:01:52]} 26. Nd6 {[%clk 0:01:36]}  Qe6 {[%clk 0:01:52]} 27. d5 {[%clk 0:01:25]}  Nxd5 {[%clk 0:01:50]} 28. Nxf5 {[%clk 0:01:24]}  Qxf5 {[%clk 0:01:50]} 29. c4 {[%clk 0:01:20]}  e3 {[%clk 0:01:26]} 30. fxe3 {[%clk 0:01:19]} 1-0


[Site "https://www.chess.com"]

[Event "Titled Tuesday Blitz August 1 Late 2023"]
[White "Harshavardhan G B"]
[Black "Krzyzanowski, Marcin"]
[WhiteFideId "25059009"]
[BlackFideId "1132199"]
[WhiteElo "2887"]
[BlackElo "2790"]
[Result "0-1"]
[Round "10"]
[TimeControl "180+1"]
[Date "2023.08.01"]
[WhiteClock "0:00:00"]
[BlackClock "0:00:34"]
[Board "9"]

1. d4 {[%clk 0:02:55]}  Nf6 {[%clk 0:02:59]} 2. c4 {[%clk 0:02:54]}  e6 {[%clk 0:02:58]} 3. Nc3 {[%clk 0:02:54]}  Bb4 {[%clk 0:02:57]} 4. f3 {[%clk 0:02:53]}  c5 {[%clk 0:02:40]} 5. d5 {[%clk 0:02:52]}  d6 {[%clk 0:02:36]} 6. e4 {[%clk 0:02:51]}  O-O {[%clk 0:02:33]} 7. Bd3 {[%clk 0:02:50]}  b5 {[%clk 0:02:31]} 8. Ne2 {[%clk 0:02:48]}  bxc4 {[%clk 0:02:30]} 9. Bxc4 {[%clk 0:02:48]}  e5 {[%clk 0:02:21]} 10. O-O {[%clk 0:02:47]}  Nbd7 {[%clk 0:02:15]} 11. Ng3 {[%clk 0:02:45]}  Nb6 {[%clk 0:02:14]} 12. Bd3 {[%clk 0:02:43]}  a5 {[%clk 0:02:06]} 13. f4 {[%clk 0:02:42]}  exf4 {[%clk 0:01:56]} 14. Bxf4 {[%clk 0:02:43]}  Ng4 {[%clk 0:01:53]} 15. Nb5 {[%clk 0:02:24]}  c4 {[%clk 0:01:52]} 16. Be2 {[%clk 0:02:23]}  Bc5+ {[%clk 0:01:52]} 17. Kh1 {[%clk 0:02:22]}  Nxh2 {[%clk 0:01:45]} 18. Nf5 {[%clk 0:02:06]}  Nxf1 {[%clk 0:01:36]} 19. Qxf1 {[%clk 0:02:07]}  Bxf5 {[%clk 0:01:35]} 20. exf5 {[%clk 0:02:08]}  Qh4+ {[%clk 0:01:32]} 21. Bh2 {[%clk 0:02:06]}  Nxd5 {[%clk 0:01:30]} 22. Bf3 {[%clk 0:01:38]}  Ne3 {[%clk 0:01:28]} 23. Qe1 {[%clk 0:01:36]}  Qxe1+ {[%clk 0:01:20]} 24. Rxe1 {[%clk 0:01:35]}  Rad8 {[%clk 0:01:14]} 25. f6 {[%clk 0:01:14]}  d5 {[%clk 0:00:59]} 26. Bc7 {[%clk 0:00:59]}  Rd7 {[%clk 0:00:55]} 27. Bf4 {[%clk 0:00:55]}  d4 {[%clk 0:00:49]} 28. Bc6 {[%clk 0:00:43]}  Rdd8 {[%clk 0:00:46]} 29. Bg5 {[%clk 0:00:33]}  Rc8 {[%clk 0:00:39]} 30. Bd7 {[%clk 0:00:31]}  Rb8 {[%clk 0:00:37]} 31. a4 {[%clk 0:00:28]}  Rb6 {[%clk 0:00:36]} 32. g4 {[%clk 0:00:10]}  gxf6 {[%clk 0:00:34]} 33. Bh6 {[%clk 0:00:00]}  Rd8 {[%clk 0:00:34]} 0-1


[Site "https://www.chess.com"]

[Event "Titled Tuesday Blitz August 1 Late 2023"]
[White "Maksimovic, Bojan"]
[Black "Volkov, Maksim"]
[WhiteFideId "14408120"]
[BlackFideId "54123070"]
[WhiteElo "2860"]
[BlackElo "2723"]
[Result "1-0"]
[Round "10"]
[TimeControl "180+1"]
[Date "2023.08.01"]
[WhiteClock "0:00:10"]
[BlackClock "0:00:09"]
[Board "10"]

1. Nf3 {[%clk 0:03:00]}  d5 {[%clk 0:03:00]} 2. g3 {[%clk 0:02:59]}  Bg4 {[%clk 0:03:00]} 3. Bg2 {[%clk 0:02:59]}  c6 {[%clk 0:03:00]} 4. O-O {[%clk 0:02:59]}  e6 {[%clk 0:03:01]} 5. d3 {[%clk 0:03:00]}  Nf6 {[%clk 0:03:01]} 6. Nbd2 {[%clk 0:03:00]}  Nbd7 {[%clk 0:03:01]} 7. c3 {[%clk 0:02:58]}  Bd6 {[%clk 0:02:58]} 8. Qc2 {[%clk 0:02:58]}  O-O {[%clk 0:02:58]} 9. Re1 {[%clk 0:02:58]}  e5 {[%clk 0:02:57]} 10. e4 {[%clk 0:02:58]}  Re8 {[%clk 0:02:57]} 11. b3 {[%clk 0:02:54]}  a5 {[%clk 0:02:55]} 12. a3 {[%clk 0:02:54]}  Qc7 {[%clk 0:02:48]} 13. Bb2 {[%clk 0:02:53]}  b5 {[%clk 0:02:38]} 14. b4 {[%clk 0:02:53]}  axb4 {[%clk 0:02:35]} 15. cxb4 {[%clk 0:02:50]}  c5 {[%clk 0:02:27]} 16. h3 {[%clk 0:02:28]}  Bxf3 {[%clk 0:02:25]} 17. Bxf3 {[%clk 0:02:22]}  cxb4 {[%clk 0:02:18]} 18. Qxc7 {[%clk 0:02:19]}  Bxc7 {[%clk 0:02:19]} 19. exd5 {[%clk 0:02:12]}  Bd6 {[%clk 0:02:17]} 20. axb4 {[%clk 0:02:03]}  Bxb4 {[%clk 0:02:16]} 21. Red1 {[%clk 0:02:00]}  Rxa1 {[%clk 0:02:13]} 22. Bxa1 {[%clk 0:01:59]}  Rc8 {[%clk 0:01:52]} 23. Nf1 {[%clk 0:01:06]}  Bc3 {[%clk 0:01:38]} 24. Ne3 {[%clk 0:00:52]}  Nb6 {[%clk 0:01:30]} 25. Bxc3 {[%clk 0:00:41]}  Rxc3 {[%clk 0:01:29]} 26. g4 {[%clk 0:00:42]}  h6 {[%clk 0:01:26]} 27. h4 {[%clk 0:00:42]}  b4 {[%clk 0:01:14]} 28. g5 {[%clk 0:00:39]}  hxg5 {[%clk 0:01:14]} 29. hxg5 {[%clk 0:00:40]}  Ne8 {[%clk 0:01:14]} 30. Rb1 {[%clk 0:00:37]}  b3 {[%clk 0:01:11]} 31. Bd1 {[%clk 0:00:38]}  Rxd3 {[%clk 0:01:08]} 32. Bxb3 {[%clk 0:00:38]}  Rd4 {[%clk 0:01:00]} 33. Ba2 {[%clk 0:00:30]}  Nc8 {[%clk 0:00:23]} 34. Rb8 {[%clk 0:00:08]}  Ned6 {[%clk 0:00:19]} 35. Nf5 {[%clk 0:00:05]}  Kh7 {[%clk 0:00:18]} 36. Nxd4 {[%clk 0:00:04]}  exd4 {[%clk 0:00:18]} 37. Bb1+ {[%clk 0:00:05]}  g6 {[%clk 0:00:17]} 38. Bd3 {[%clk 0:00:04]}  Ne7 {[%clk 0:00:17]} 39. Rb4 {[%clk 0:00:04]}  Ndf5 {[%clk 0:00:08]} 40. Bxf5 {[%clk 0:00:04]}  Nxf5 {[%clk 0:00:09]} 41. Kg2 {[%clk 0:00:05]}  Kg7 {[%clk 0:00:09]} 42. Kf3 {[%clk 0:00:05]}  Kf8 {[%clk 0:00:10]} 43. Ke4 {[%clk 0:00:05]}  Ke7 {[%clk 0:00:10]} 44. Rxd4 {[%clk 0:00:05]}  Nxd4 {[%clk 0:00:08]} 45. Kxd4 {[%clk 0:00:06]}  Kd6 {[%clk 0:00:08]} 46. f4 {[%clk 0:00:06]}  Kd7 {[%clk 0:00:08]} 47. Ke5 {[%clk 0:00:07]}  Ke7 {[%clk 0:00:09]} 48. d6+ {[%clk 0:00:07]}  Kd7 {[%clk 0:00:10]} 49. Kf6 {[%clk 0:00:08]}  Kxd6 {[%clk 0:00:10]} 50. Kxf7 {[%clk 0:00:09]}  Kd5 {[%clk 0:00:09]} 51. Kxg6 {[%clk 0:00:10]} 1-0


[Site "https://www.chess.com"]

[Event "Titled Tuesday Blitz August 1 Late 2023"]
[White "Kazakouski, Valery"]
[Black "Annaberdiyev, Meylis"]
[WhiteFideId "13507443"]
[BlackFideId "14000563"]
[WhiteElo "2901"]
[BlackElo "2684"]
[Result "0-1"]
[Round "10"]
[TimeControl "180+1"]
[Date "2023.08.01"]
[WhiteClock "0:00:42"]
[BlackClock "0:00:25"]
[Board "13"]

1. Nf3 {[%clk 0:03:00]}  Nf6 {[%clk 0:02:57]} 2. c4 {[%clk 0:03:01]}  g6 {[%clk 0:02:54]} 3. g3 {[%clk 0:03:01]}  Bg7 {[%clk 0:02:55]} 4. Bg2 {[%clk 0:03:01]}  O-O {[%clk 0:02:56]} 5. O-O {[%clk 0:03:02]}  d6 {[%clk 0:02:56]} 6. d4 {[%clk 0:03:02]}  c6 {[%clk 0:02:57]} 7. Nc3 {[%clk 0:03:03]}  Bf5 {[%clk 0:02:58]} 8. Ng5 {[%clk 0:03:03]}  h6 {[%clk 0:02:57]} 9. e4 {[%clk 0:03:03]}  Bg4 {[%clk 0:02:57]} 10. Nf3 {[%clk 0:03:04]}  Nbd7 {[%clk 0:02:57]} 11. h3 {[%clk 0:03:02]}  Bxf3 {[%clk 0:02:57]} 12. Bxf3 {[%clk 0:03:03]}  e5 {[%clk 0:02:58]} 13. d5 {[%clk 0:03:04]}  c5 {[%clk 0:02:49]} 14. a3 {[%clk 0:03:00]}  h5 {[%clk 0:02:46]} 15. b4 {[%clk 0:03:00]}  Kh7 {[%clk 0:02:45]} 16. Kg2 {[%clk 0:02:43]}  Bh6 {[%clk 0:02:37]} 17. Bxh6 {[%clk 0:02:43]}  Kxh6 {[%clk 0:02:37]} 18. Qd2+ {[%clk 0:02:44]}  Kg7 {[%clk 0:02:36]} 19. h4 {[%clk 0:02:40]}  a6 {[%clk 0:02:22]} 20. Be2 {[%clk 0:02:39]}  Re8 {[%clk 0:02:16]} 21. Rab1 {[%clk 0:02:36]}  cxb4 {[%clk 0:02:05]} 22. axb4 {[%clk 0:02:35]}  a5 {[%clk 0:02:05]} 23. bxa5 {[%clk 0:02:32]}  Nc5 {[%clk 0:02:05]} 24. f3 {[%clk 0:02:26]}  Qxa5 {[%clk 0:01:59]} 25. Rfd1 {[%clk 0:02:26]}  Ra6 {[%clk 0:01:51]} 26. Nb5 {[%clk 0:02:18]}  Qxd2 {[%clk 0:01:41]} 27. Rxd2 {[%clk 0:02:19]}  Rc8 {[%clk 0:01:42]} 28. Rdb2 {[%clk 0:02:16]}  Kf8 {[%clk 0:01:32]} 29. Kf2 {[%clk 0:02:15]}  Ke7 {[%clk 0:01:32]} 30. Ke3 {[%clk 0:02:16]}  Rca8 {[%clk 0:01:13]} 31. Bd1 {[%clk 0:02:05]}  Ra2 {[%clk 0:01:12]} 32. Bc2 {[%clk 0:02:05]}  Rxb2 {[%clk 0:01:11]} 33. Rxb2 {[%clk 0:02:05]}  Ra1 {[%clk 0:01:05]} 34. Nc3 {[%clk 0:02:04]}  Nfd7 {[%clk 0:00:59]} 35. Bd1 {[%clk 0:01:52]}  Ra3 {[%clk 0:00:47]} 36. Kd2 {[%clk 0:01:51]}  f5 {[%clk 0:00:31]} 37. Bc2 {[%clk 0:01:05]}  f4 {[%clk 0:00:27]} 38. gxf4 {[%clk 0:00:59]}  exf4 {[%clk 0:00:27]} 39. Bd1 {[%clk 0:00:59]}  Ne5 {[%clk 0:00:27]} 40. Be2 {[%clk 0:01:00]}  Rxc3 {[%clk 0:00:25]} 41. Kxc3 {[%clk 0:00:54]}  Na4+ {[%clk 0:00:25]} 42. Kb3 {[%clk 0:00:55]}  Nxb2 {[%clk 0:00:26]} 43. Kxb2 {[%clk 0:00:55]}  Kf6 {[%clk 0:00:26]} 44. Kc3 {[%clk 0:00:46]}  g5 {[%clk 0:00:25]} 45. hxg5+ {[%clk 0:00:47]}  Kxg5 {[%clk 0:00:26]} 46. Kd2 {[%clk 0:00:42]}  Kh4 {[%clk 0:00:25]} 0-1


[Site "https://www.chess.com"]

[Event "Titled Tuesday Blitz August 1 Late 2023"]
[White "Ibarra Jerez, Jose Carlos"]
[Black "Manukyan, Sargis A."]
[WhiteFideId "2226332"]
[BlackFideId "13303970"]
[WhiteElo "2878"]
[BlackElo "2680"]
[Result "1-0"]
[Round "10"]
[TimeControl "180+1"]
[Date "2023.08.01"]
[WhiteClock "0:00:28"]
[BlackClock "0:00:03"]
[Board "14"]

1. e4 {[%clk 0:03:00]}  c5 {[%clk 0:03:00]} 2. Ne2 {[%clk 0:02:59]}  d6 {[%clk 0:03:00]} 3. g3 {[%clk 0:02:58]}  Nc6 {[%clk 0:02:59]} 4. Bg2 {[%clk 0:02:58]}  g6 {[%clk 0:03:00]} 5. c3 {[%clk 0:02:58]}  Bg7 {[%clk 0:03:01]} 6. d4 {[%clk 0:02:59]}  cxd4 {[%clk 0:02:54]} 7. cxd4 {[%clk 0:02:59]}  e6 {[%clk 0:02:55]} 8. Nbc3 {[%clk 0:02:59]}  Nge7 {[%clk 0:02:55]} 9. d5 {[%clk 0:02:59]}  exd5 {[%clk 0:02:52]} 10. exd5 {[%clk 0:03:00]}  Ne5 {[%clk 0:02:53]} 11. O-O {[%clk 0:02:57]}  O-O {[%clk 0:02:52]} 12. h3 {[%clk 0:02:58]}  h5 {[%clk 0:02:48]} 13. Be3 {[%clk 0:02:48]}  Bd7 {[%clk 0:02:45]} 14. Qb3 {[%clk 0:02:46]}  b6 {[%clk 0:02:37]} 15. Rad1 {[%clk 0:02:38]}  Nf5 {[%clk 0:02:24]} 16. Bc1 {[%clk 0:02:37]}  Bc8 {[%clk 0:02:16]} 17. a4 {[%clk 0:02:25]}  Nd7 {[%clk 0:02:10]} 18. Qa3 {[%clk 0:02:24]}  Ba6 {[%clk 0:02:02]} 19. Nb5 {[%clk 0:02:23]}  Nc5 {[%clk 0:01:50]} 20. b4 {[%clk 0:02:20]}  Nb7 {[%clk 0:01:49]} 21. Rfe1 {[%clk 0:02:10]}  Re8 {[%clk 0:01:47]} 22. Ned4 {[%clk 0:01:57]}  Rxe1+ {[%clk 0:01:44]} 23. Rxe1 {[%clk 0:01:55]}  Nxd4 {[%clk 0:01:43]} 24. Nxd4 {[%clk 0:01:56]}  Bxd4 {[%clk 0:01:43]} 25. b5 {[%clk 0:01:57]}  Qf6 {[%clk 0:01:17]} 26. Bf3 {[%clk 0:01:50]}  Bc3 {[%clk 0:01:08]} 27. Re3 {[%clk 0:01:48]}  Bxb5 {[%clk 0:00:57]} 28. Rxc3 {[%clk 0:01:39]}  Bd7 {[%clk 0:00:53]} 29. Bb2 {[%clk 0:01:33]}  Qf5 {[%clk 0:00:46]} 30. Rc7 {[%clk 0:01:03]}  Nc5 {[%clk 0:00:29]} 31. a5 {[%clk 0:01:03]}  Re8 {[%clk 0:00:22]} 32. Qc3 {[%clk 0:01:01]}  Qe5 {[%clk 0:00:22]} 33. Qxe5 {[%clk 0:00:54]}  dxe5 {[%clk 0:00:23]} 34. Rxa7 {[%clk 0:00:49]}  Bxh3 {[%clk 0:00:08]} 35. axb6 {[%clk 0:00:47]}  e4 {[%clk 0:00:09]} 36. Be2 {[%clk 0:00:45]}  Rb8 {[%clk 0:00:08]} 37. Bd4 {[%clk 0:00:43]}  Nd3 {[%clk 0:00:05]} 38. b7 {[%clk 0:00:38]}  Bc8 {[%clk 0:00:03]} 39. Ra8 {[%clk 0:00:33]}  Rxb7 {[%clk 0:00:02]} 40. Rxc8+ {[%clk 0:00:28]}  Kh7 {[%clk 0:00:03]} 41. Rh8# {[%clk 0:00:28]} 1-0


[Site "https://www.chess.com"]

[Event "Titled Tuesday Blitz August 1 Late 2023"]
[White "Karaoglan, Doruk"]
[Black "Hansen, Eric"]
[WhiteFideId "6390927"]
[BlackFideId "2606771"]
[WhiteElo "2639"]
[BlackElo "2836"]
[Result "0-1"]
[Round "10"]
[TimeControl "180+1"]
[Date "2023.08.01"]
[WhiteClock "0:00:02"]
[BlackClock "0:00:13"]
[Board "19"]

1. e4 {[%clk 0:03:00]}  c5 {[%clk 0:03:00]} 2. Nc3 {[%clk 0:03:00]}  e6 {[%clk 0:03:00]} 3. g3 {[%clk 0:03:00]}  a6 {[%clk 0:03:01]} 4. Bg2 {[%clk 0:03:00]}  Nc6 {[%clk 0:03:02]} 5. d3 {[%clk 0:03:01]}  d6 {[%clk 0:03:03]} 6. Nh3 {[%clk 0:03:00]}  b5 {[%clk 0:03:03]} 7. O-O {[%clk 0:03:00]}  Bb7 {[%clk 0:03:04]} 8. f4 {[%clk 0:03:01]}  g6 {[%clk 0:03:04]} 9. f5 {[%clk 0:03:01]}  Ne5 {[%clk 0:02:48]} 10. fxe6 {[%clk 0:02:53]}  fxe6 {[%clk 0:02:49]} 11. Ng5 {[%clk 0:02:54]}  Qe7 {[%clk 0:02:50]} 12. Bh3 {[%clk 0:02:52]}  Bc8 {[%clk 0:02:50]} 13. Bf4 {[%clk 0:02:47]}  Nf6 {[%clk 0:02:50]} 14. Bxe5 {[%clk 0:02:36]}  dxe5 {[%clk 0:02:50]} 15. a4 {[%clk 0:02:34]}  b4 {[%clk 0:02:49]} 16. Nb1 {[%clk 0:02:34]}  Bh6 {[%clk 0:02:49]} 17. Nf3 {[%clk 0:02:34]}  c4 {[%clk 0:02:38]} 18. Nbd2 {[%clk 0:02:03]}  cxd3 {[%clk 0:02:38]} 19. cxd3 {[%clk 0:02:04]}  O-O {[%clk 0:02:38]} 20. Nc4 {[%clk 0:02:04]}  Nd7 {[%clk 0:02:37]} 21. Kh1 {[%clk 0:02:00]}  a5 {[%clk 0:02:35]} 22. Nfxe5 {[%clk 0:01:59]}  Nxe5 {[%clk 0:02:36]} 23. Nxe5 {[%clk 0:01:59]}  Ba6 {[%clk 0:02:33]} 24. Qb3 {[%clk 0:01:59]}  Kg7 {[%clk 0:02:19]} 25. Rxf8 {[%clk 0:01:33]}  Rxf8 {[%clk 0:02:19]} 26. Qc2 {[%clk 0:01:22]}  Qd6 {[%clk 0:02:05]} 27. Nc4 {[%clk 0:01:17]}  Qd4 {[%clk 0:02:05]} 28. Rf1 {[%clk 0:01:10]}  Rd8 {[%clk 0:00:45]} 29. Bxe6 {[%clk 0:00:33]}  Kh8 {[%clk 0:00:35]} 30. Rf7 {[%clk 0:00:22]}  Bg7 {[%clk 0:00:33]} 31. Rf3 {[%clk 0:00:12]}  h5 {[%clk 0:00:30]} 32. Bf7 {[%clk 0:00:11]}  Kh7 {[%clk 0:00:28]} 33. Qe2 {[%clk 0:00:10]}  Bc8 {[%clk 0:00:27]} 34. Rf4 {[%clk 0:00:09]}  Bh6 {[%clk 0:00:26]} 35. Rf1 {[%clk 0:00:07]}  Bg4 {[%clk 0:00:22]} 36. Qc2 {[%clk 0:00:04]}  Bh3 {[%clk 0:00:19]} 37. Rd1 {[%clk 0:00:03]}  b3 {[%clk 0:00:15]} 38. Qd2 {[%clk 0:00:02]}  Bg4 {[%clk 0:00:13]} 39. Qe1 {[%clk 0:00:02]}  Bf3# {[%clk 0:00:13]} 0-1


[Site "https://www.chess.com"]

[Event "Titled Tuesday Blitz August 1 Late 2023"]
[White "brm72"]
[Black "Volovich, Vasily"]
[BlackFideId "34169676"]
[WhiteElo "2620"]
[BlackElo "2743"]
[Result "0-1"]
[Round "10"]
[TimeControl "180+1"]
[Date "2023.08.01"]
[WhiteClock "0:00:05"]
[BlackClock "0:00:04"]
[Board "21"]

1. e4 {[%clk 0:03:00]}  e6 {[%clk 0:02:57]} 2. d4 {[%clk 0:03:00]}  d5 {[%clk 0:02:57]} 3. e5 {[%clk 0:03:01]}  c5 {[%clk 0:02:57]} 4. c3 {[%clk 0:03:01]}  Nc6 {[%clk 0:02:57]} 5. Nf3 {[%clk 0:03:02]}  Bd7 {[%clk 0:02:58]} 6. Be2 {[%clk 0:03:01]}  f6 {[%clk 0:02:57]} 7. O-O {[%clk 0:02:58]}  fxe5 {[%clk 0:02:56]} 8. dxe5 {[%clk 0:02:49]}  Qc7 {[%clk 0:02:54]} 9. c4 {[%clk 0:02:43]}  d4 {[%clk 0:02:48]} 10. Bf4 {[%clk 0:02:43]}  Nh6 {[%clk 0:02:44]} 11. Re1 {[%clk 0:02:39]}  Nf7 {[%clk 0:02:42]} 12. Bd3 {[%clk 0:02:32]}  g6 {[%clk 0:02:40]} 13. Nbd2 {[%clk 0:02:25]}  Bg7 {[%clk 0:02:39]} 14. Ne4 {[%clk 0:02:25]}  O-O {[%clk 0:02:11]} 15. Nxc5 {[%clk 0:02:16]}  Nfxe5 {[%clk 0:02:10]} 16. Nxe5 {[%clk 0:02:07]}  Nxe5 {[%clk 0:02:01]} 17. Bxe5 {[%clk 0:01:57]}  Qxc5 {[%clk 0:01:45]} 18. Bxg7 {[%clk 0:01:50]}  Kxg7 {[%clk 0:01:45]} 19. b4 {[%clk 0:01:30]}  Qe7 {[%clk 0:01:16]} 20. Re5 {[%clk 0:01:14]}  Qf6 {[%clk 0:01:14]} 21. Qe2 {[%clk 0:01:11]}  b6 {[%clk 0:00:58]} 22. f3 {[%clk 0:01:06]}  Rac8 {[%clk 0:00:47]} 23. Rc1 {[%clk 0:01:04]}  Qe7 {[%clk 0:00:44]} 24. c5 {[%clk 0:01:03]}  b5 {[%clk 0:00:42]} 25. a3 {[%clk 0:01:02]}  a6 {[%clk 0:00:33]} 26. Qe4 {[%clk 0:01:00]}  Qf6 {[%clk 0:00:25]} 27. Qxd4 {[%clk 0:00:56]}  Bc6 {[%clk 0:00:26]} 28. Qe3 {[%clk 0:00:55]}  Rcd8 {[%clk 0:00:15]} 29. Bc2 {[%clk 0:00:40]}  Bd5 {[%clk 0:00:15]} 30. Re1 {[%clk 0:00:40]}  Qf4 {[%clk 0:00:14]} 31. Bb3 {[%clk 0:00:34]}  Qxe3+ {[%clk 0:00:12]} 32. R1xe3 {[%clk 0:00:34]}  Bxb3 {[%clk 0:00:12]} 33. Rxb3 {[%clk 0:00:35]}  Kf6 {[%clk 0:00:11]} 34. Re2 {[%clk 0:00:31]}  Rd1+ {[%clk 0:00:08]} 35. Kf2 {[%clk 0:00:31]}  Rfd8 {[%clk 0:00:08]} 36. Ke3 {[%clk 0:00:29]}  Rc1 {[%clk 0:00:08]} 37. Rd2 {[%clk 0:00:23]}  Re1+ {[%clk 0:00:06]} 38. Re2 {[%clk 0:00:22]}  Rc1 {[%clk 0:00:06]} 39. Rd3 {[%clk 0:00:20]}  Rxd3+ {[%clk 0:00:05]} 40. Kxd3 {[%clk 0:00:21]}  Ra1 {[%clk 0:00:06]} 41. Rc2 {[%clk 0:00:20]}  Rxa3+ {[%clk 0:00:06]} 42. Kd4 {[%clk 0:00:19]}  Ke7 {[%clk 0:00:03]} 43. c6 {[%clk 0:00:19]}  Kd8 {[%clk 0:00:03]} 44. Kc5 {[%clk 0:00:19]}  Kc7 {[%clk 0:00:03]} 45. Rc1 {[%clk 0:00:12]}  Rd3 {[%clk 0:00:03]} 46. Rc4 {[%clk 0:00:05]}  Rd5# {[%clk 0:00:04]} 0-1


[Site "https://www.chess.com"]

[Event "Titled Tuesday Blitz August 1 Late 2023"]
[White "Tologon tegin, Semetei"]
[Black "Kuzmicz, Krystian"]
[WhiteFideId "13800574"]
[BlackFideId "1119125"]
[WhiteElo "2610"]
[BlackElo "2704"]
[Result "1-0"]
[Round "10"]
[TimeControl "180+1"]
[Date "2023.08.01"]
[WhiteClock "0:00:40"]
[BlackClock "0:00:10"]
[Board "23"]

1. e4 {[%clk 0:03:00]}  c5 {[%clk 0:02:59]} 2. Nf3 {[%clk 0:02:59]}  e6 {[%clk 0:03:00]} 3. d4 {[%clk 0:02:59]}  cxd4 {[%clk 0:03:00]} 4. Nxd4 {[%clk 0:02:59]}  Nf6 {[%clk 0:03:01]} 5. Nc3 {[%clk 0:02:58]}  Nc6 {[%clk 0:03:01]} 6. Nxc6 {[%clk 0:02:58]}  bxc6 {[%clk 0:03:01]} 7. e5 {[%clk 0:02:58]}  Nd5 {[%clk 0:03:01]} 8. Ne4 {[%clk 0:02:59]}  Qa5+ {[%clk 0:03:01]} 9. c3 {[%clk 0:02:50]}  Ba6 {[%clk 0:03:00]} 10. Bd3 {[%clk 0:02:36]}  Bxd3 {[%clk 0:02:39]} 11. Qxd3 {[%clk 0:02:37]}  Qb5 {[%clk 0:02:39]} 12. Qxb5 {[%clk 0:02:28]}  cxb5 {[%clk 0:02:38]} 13. a4 {[%clk 0:02:22]}  bxa4 {[%clk 0:01:45]} 14. Rxa4 {[%clk 0:02:22]}  f5 {[%clk 0:01:43]} 15. Nd2 {[%clk 0:02:13]}  Bc5 {[%clk 0:01:41]} 16. Nc4 {[%clk 0:02:08]}  Ke7 {[%clk 0:01:35]} 17. Ke2 {[%clk 0:02:02]}  Rhc8 {[%clk 0:01:34]} 18. Rd1 {[%clk 0:02:00]}  h6 {[%clk 0:01:26]} 19. f4 {[%clk 0:01:58]}  Ke8 {[%clk 0:01:07]} 20. g3 {[%clk 0:01:55]}  Nb6 {[%clk 0:00:55]} 21. Nxb6 {[%clk 0:01:53]}  axb6 {[%clk 0:00:56]} 22. Rxa8 {[%clk 0:01:48]}  Rxa8 {[%clk 0:00:57]} 23. Be3 {[%clk 0:01:48]}  Ra2 {[%clk 0:00:55]} 24. Rd2 {[%clk 0:01:46]}  Bxe3 {[%clk 0:00:48]} 25. Kxe3 {[%clk 0:01:47]}  Ke7 {[%clk 0:00:48]} 26. Kd3 {[%clk 0:01:43]}  d5 {[%clk 0:00:48]} 27. exd6+ {[%clk 0:01:42]}  Kxd6 {[%clk 0:00:49]} 28. Kc4+ {[%clk 0:01:42]}  Kc6 {[%clk 0:00:49]} 29. Re2 {[%clk 0:01:40]}  Kd6 {[%clk 0:00:40]} 30. Kb5 {[%clk 0:01:39]}  g5 {[%clk 0:00:39]} 31. Kxb6 {[%clk 0:01:37]}  Ra8 {[%clk 0:00:36]} 32. Rd2+ {[%clk 0:01:33]}  Ke7 {[%clk 0:00:36]} 33. b4 {[%clk 0:01:22]}  Rc8 {[%clk 0:00:32]} 34. Rd3 {[%clk 0:01:21]}  e5 {[%clk 0:00:32]} 35. fxe5 {[%clk 0:01:20]}  Ke6 {[%clk 0:00:32]} 36. b5 {[%clk 0:01:19]}  Kxe5 {[%clk 0:00:32]} 37. Kb7 {[%clk 0:01:03]}  Rc4 {[%clk 0:00:31]} 38. b6 {[%clk 0:01:03]}  f4 {[%clk 0:00:31]} 39. gxf4+ {[%clk 0:01:02]}  gxf4 {[%clk 0:00:32]} 40. Ka6 {[%clk 0:01:00]}  Ra4+ {[%clk 0:00:28]} 41. Kb5 {[%clk 0:00:59]}  Ra1 {[%clk 0:00:28]} 42. c4 {[%clk 0:00:59]}  Rb1+ {[%clk 0:00:28]} 43. Kc6 {[%clk 0:00:58]}  Ke4 {[%clk 0:00:27]} 44. Rh3 {[%clk 0:00:58]}  f3 {[%clk 0:00:27]} 45. Rxf3 {[%clk 0:00:49]}  Kxf3 {[%clk 0:00:26]} 46. c5 {[%clk 0:00:46]}  Ke4 {[%clk 0:00:24]} 47. Kb7 {[%clk 0:00:40]}  Kd5 {[%clk 0:00:18]} 48. c6 {[%clk 0:00:40]}  Kd6 {[%clk 0:00:10]} 49. c7 {[%clk 0:00:40]} 1-0


[Site "https://www.chess.com"]